bitfinex-derivatives/quotes_BTCF0:USTF0_20220102
["timestamp","ask_amount","ask_price","bid_price","bid_amount"]
[1641157170404,0.09067294,47016.0,47015.0,0.54330563]
[1641157170610,0.23100861,47016.0,47015.0,0.54330563]
[1641157171104,0.23100861,47016.0,47015.0,0.186]
[1641157171508,0.23100861,47016.0,47014.0,0.35730563]
[1641157172307,0.23100861,47016.0,47014.0,0.54330563]
[1641157172711,0.09067294,47015.0,47014.0,0.54330563]
[1641157173618,0.09067294,47015.0,47014.0,0.35730563]
[1641157174218,0.09067294,47015.0,47014.0,0.54430563]
[1641157174619,0.27067294,47015.0,47014.0,0.54430563]
[1641157174822,0.27067294,47015.0,47014.0,0.187]
[1641157175419,1.72141396,47015.0,47014.0,0.187]
[1641157176120,1.72141396,47015.0,47012.0,0.35730563]
[1641157176318,1.54141396,47015.0,47014.0,0.187]
[1641157176519,1.72141396,47015.0,47014.0,0.187]
[1641157176920,1.54141396,47015.0,47014.0,0.187]
[1641157177122,0.18,47015.0,47014.0,0.187]
[1641157177523,0.18,47015.0,47011.0,0.35730563]
[1641157177822,0.18,47013.0,47011.0,0.35730563]
[1641157178222,0.14033567,47016.0,47011.0,0.54630563]
[1641157179224,0.18,47013.0,47011.0,0.54630563]
[1641157179423,0.14033567,47016.0,47011.0,0.54630563]
[1641157179624,0.18,47013.0,47011.0,0.35730563]
[1641157180228,0.18,47013.0,47011.0,0.54630563]
[1641157181128,0.14033567,47016.0,47011.0,0.189]
[1641157181528,0.18,47013.0,47010.0,0.35730563]
[1641157181727,0.14033567,47016.0,47010.0,0.35730563]
[1641157182329,0.14033567,47016.0,47010.0,0.54330563]
[1641157183231,0.14033567,47016.0,47012.0,0.35730563]
[1641157184233,0.14033567,47016.0,47012.0,0.54630563]
[1641157184633,0.14033567,47016.0,47013.0,0.35730563]
[1641157186336,0.14033567,47016.0,47013.0,0.54630563]
[1641157188038,0.14033567,47016.0,47013.0,0.189]
[1641157188240,0.14033567,47016.0,47014.0,0.59518537]
[1641157189043,0.14033567,47016.0,47014.0,0.83325952]
[1641157189542,1.59107669,47020.0,47014.0,0.83325952]
[1641157190145,1.59107669,47020.0,47015.0,0.83325952]
[1641157190844,1.59107669,47020.0,47018.0,0.3583077]
[1641157191649,1.59107669,47020.0,47017.0,0.3583077]
[1641157191845,1.66567669,47020.0,47017.0,0.3583077]
[1641157192447,0.09067205,47019.0,47017.0,0.5453077]
[1641157192847,1.54141307,47019.0,47017.0,0.5453077]
[1641157193655,1.54141307,47019.0,47017.0,0.3583077]
[1641157194056,1.54141307,47019.0,47016.0,0.3583077]
[1641157194458,1.54141307,47019.0,47017.0,0.188]
[1641157195061,1.45074102,47018.0,47017.0,0.188]
[1641157195660,1.54141307,47019.0,47016.0,0.3583077]
[1641157196464,1.54141307,47019.0,47016.0,0.5473077]
[1641157197461,1.72141307,47019.0,47016.0,0.5473077]
[1641157197660,1.72141307,47019.0,47016.0,0.3583077]
[1641157197863,1.45074102,47018.0,47016.0,0.3583077]
[1641157198363,1.45074102,47018.0,47016.0,0.5453077]
[1641157198863,1.32919139,47017.0,47016.0,0.187]
[1641157199566,1.32919139,47017.0,47012.0,0.3583077]
[1641157200469,1.32919139,47017.0,47012.0,0.5463077]
[1641157201771,0.02127594,47013.0,47012.0,0.3583077]
[1641157202169,0.02127594,47013.0,47007.0,1.1895288]
[1641157202170,0.03106994,47013.0,47007.0,1.1895288]
[1641157202370,0.03106994,47013.0,46991.0,0.06384195]
[1641157202371,1.296,47008.0,47006.0,1.1895288]
[1641157202570,0.18,47007.0,47006.0,1.1895288]
[1641157202769,1.58746534,47007.0,47006.0,1.1895288]
[1641157203371,3.12887841,47007.0,47006.0,1.1895288]
[1641157203570,3.12887841,47007.0,46996.0,1.8488]
[1641157203769,0.18,47002.0,46994.0,1.1895288]
[1641157203971,1.296,47002.0,46994.0,1.1895288]
[1641157204371,0.07460334,47001.0,46994.0,1.3735288]
[1641157204670,1.38290714,47001.0,46995.0,0.01209187]
[1641157204871,0.14033567,46996.0,46995.0,0.01209187]
[1641157205272,0.14033567,46996.0,46994.0,0.184]
[1641157205774,0.14033567,46996.0,46991.0,1.1895288]
[1641157206374,0.14033567,46996.0,46992.0,0.01209215]
[1641157207677,0.09067205,46995.0,46992.0,0.01209215]
[1641157208478,0.09067205,46995.0,46992.0,0.187]
[1641157209478,0.09067205,46995.0,46993.0,0.01209209]
[1641157210078,0.09067205,46995.0,46990.0,0.19209209]
[1641157210279,0.09067205,46995.0,46994.0,0.01209209]
[1641157210678,0.09067205,46995.0,46993.0,0.187]
[1641157210880,0.09067205,46995.0,46994.0,0.01209209]
[1641157211681,0.09067205,46995.0,46990.0,1.1895288]
[1641157212086,0.09067205,46995.0,46993.0,0.60009748]
[1641157213289,0.84612484,46994.0,46993.0,0.60009748]
[1641157213990,0.84612484,46994.0,46993.0,0.61218977]
[1641157214390,0.84612484,46994.0,46993.0,0.79918977]
[1641157215295,0.93679689,46995.0,46993.0,0.19909229]
[1641157215694,0.93679689,46995.0,46994.0,0.01209229]
[1641157216194,0.93679689,46995.0,46994.0,0.59990234]
[1641157216394,0.93679689,46995.0,46994.0,0.78690234]
[1641157216695,0.93679689,46995.0,46994.0,0.79899463]
[1641157217696,0.93679689,46995.0,46994.0,0.61199463]
[1641157218497,0.93679689,46995.0,46994.0,0.79899463]
[1641157218699,0.93679689,46995.0,46994.0,0.78690234]
[1641157218898,0.09067205,46995.0,46994.0,0.78690234]
[1641157220105,0.09067205,46995.0,46994.0,0.187]
[1641157220304,0.2919557,46995.0,46994.0,0.187]
[1641157220503,0.3017497,46995.0,46994.0,0.373]
[1641157220905,0.3017497,46995.0,46994.0,0.73315263]
[1641157221105,0.1217497,46995.0,46994.0,0.73315263]
[1641157221705,1.63133477,46995.0,46994.0,0.373]
[1641157221908,1.63133477,46995.0,46993.0,0.840053]
[1641157222507,0.2417497,46995.0,46993.0,0.186]
[1641157222709,0.1217497,46995.0,46993.0,0.78685281]
[1641157223409,1.42110723,46994.0,46993.0,0.78685281]
[1641157223812,1.42110723,46994.0,46993.0,0.60085281]
[1641157224012,1.60110723,46994.0,46993.0,0.60085281]
[1641157224411,1.42110723,46994.0,46993.0,0.78685281]
[1641157224913,0.09067205,46994.0,46993.0,0.78685281]
[1641157225725,0.27067205,46994.0,46993.0,0.60085281]
[1641157225927,0.29195783,46994.0,46993.0,0.36074498]
[1641157226326,0.11195783,46994.0,46993.0,0.36074498]
[1641157226527,0.20128578,46994.0,46993.0,0.54574498]
[1641157226929,0.20128578,46994.0,46993.0,0.185]
[1641157227931,0.20128578,46994.0,46985.0,0.14033567]
[1641157228131,1.31728578,46994.0,46985.0,0.14033567]
[1641157228330,0.18,46993.0,46986.0,0.01209375]
[1641157228528,0.02128578,46994.0,46986.0,0.01209375]
[1641157230533,0.02128578,46994.0,46986.0,0.19809375]
[1641157231128,0.18,46993.0,46986.0,0.19809375]
[1641157231428,0.18,46993.0,46987.0,0.01209375]
[1641157231828,0.02128578,46994.0,46987.0,0.01209375]
[1641157232029,0.20128578,46994.0,46987.0,0.01209375]
[1641157232428,0.20128578,46994.0,46987.0,0.186]
[1641157232633,0.02128578,46994.0,46987.0,0.186]
[1641157232830,0.20128578,46994.0,46987.0,0.186]
[1641157233931,0.02128578,46994.0,46985.0,0.14033567]
[1641157234332,0.20128578,46994.0,46985.0,0.14033567]
[1641157234531,0.20128578,46994.0,46986.0,0.01209374]
[1641157234731,0.02128578,46994.0,46986.0,0.01209374]
[1641157234931,0.20128578,46994.0,46986.0,0.01209374]
[1641157235332,0.02128578,46994.0,46986.0,0.01209374]
[1641157236532,0.02128578,46994.0,46986.0,0.19809374]
[1641157237132,0.02128578,46994.0,46987.0,0.01209374]
[1641157238236,0.02128578,46994.0,46987.0,0.18]
[1641157238440,0.02128578,46994.0,46988.0,0.01209374]
[1641157239034,0.02128578,46994.0,46990.0,0.14033567]
[1641157239435,0.02128578,46994.0,46991.0,0.01209374]
[1641157240534,0.02128578,46994.0,46991.0,0.20509374]
[1641157240836,0.02128578,46994.0,46991.0,0.193]
[1641157241042,0.02128217,46999.0,46991.0,0.193]
[1641157241837,0.02128217,46999.0,46990.0,0.14033567]
[1641157242238,0.02128217,46999.0,46991.0,0.01209244]
[1641157243337,0.09070472,46998.0,46996.0,0.36074498]
[1641157244539,0.09070472,46998.0,46996.0,0.55074498]
[1641157244741,0.09070472,46998.0,46996.0,0.19]
[1641157245839,0.09070472,46998.0,46994.0,0.36074498]
[1641157246641,0.09070472,46998.0,46994.0,0.55374498]
[1641157247844,0.09070472,46998.0,46994.0,0.36074498]
[1641157248542,0.09070472,46998.0,46994.0,0.55374498]
[1641157249942,0.09070472,46998.0,46994.0,0.36074498]
[1641157250542,0.09070472,46998.0,46994.0,0.193]
[1641157251744,0.09070472,46998.0,46994.0,0.55374498]
[1641157251945,0.09070472,46998.0,46994.0,0.36074498]
[1641157252548,0.09070472,46998.0,46994.0,0.55374498]
[1641157253944,0.09070472,46998.0,46994.0,0.36074498]
[1641157254150,0.20128393,46995.0,46994.0,0.36074498]
[1641157254348,1.31728393,46995.0,46994.0,0.36074498]
[1641157254547,1.31728393,46995.0,46994.0,0.54674498]
[1641157255052,1.54832432,46995.0,46994.0,0.54674498]
[1641157255248,1.54832432,46995.0,46994.0,0.186]
[1641157255947,1.54832432,46995.0,46988.0,0.36074498]
[1641157256349,1.54832432,46995.0,46987.0,0.36074498]
[1641157256653,1.54832432,46995.0,46988.0,0.185]
[1641157257048,0.14033567,46989.0,46988.0,0.185]
[1641157257248,0.14033567,46989.0,46988.0,0.54574498]
[1641157258049,0.14033567,46989.0,46988.0,0.36074498]
[1641157258649,0.14033567,46989.0,46988.0,0.54774498]
[1641157259051,0.14033567,46989.0,46988.0,0.187]
[1641157259052,0.23104039,46989.0,46988.0,0.187]
[1641157260052,0.23104039,46989.0,46987.0,0.36074498]
[1641157260655,0.23104039,46989.0,46987.0,0.54774498]
[1641157261256,0.09070472,46988.0,46987.0,0.54774498]
[1641157261958,0.09070472,46988.0,46987.0,0.36074498]
[1641157262156,0.09070472,46988.0,46986.0,0.36074498]
[1641157262558,0.09070472,46988.0,46987.0,0.188]
[1641157262758,0.09070472,46988.0,46987.0,0.20009389]
[1641157262958,0.09070472,46988.0,46987.0,0.188]
[1641157263160,0.09070472,46988.0,46987.0,0.20009369]
[1641157263959,0.09070472,46988.0,46987.0,0.01209369]
[1641157264365,0.09070472,46988.0,46987.0,0.6129465]
[1641157264659,0.09070472,46988.0,46987.0,0.8019465]
[1641157265861,0.09070472,46988.0,46987.0,0.6129465]
[1641157266662,0.09070472,46988.0,46987.0,0.8049465]
[1641157266864,1.32984913,46994.0,46987.0,0.8049465]
[1641157267263,0.1616196,46995.0,46987.0,0.20409369]
[1641157267460,0.60441412,46989.0,46988.0,0.01209369]
[1641157267661,0.60441412,46989.0,46988.0,0.19209369]
[1641157268461,0.1616196,46995.0,46988.0,0.19209369]
[1641157268462,0.60441412,46990.0,46988.0,0.19209369]
[1641157268662,0.60441412,46990.0,46988.0,0.38609369]
[1641157269162,0.60441412,46990.0,46989.0,0.01209369]
[1641157269367,0.60441412,46990.0,46989.0,0.8490659]
[1641157269963,0.60441412,46990.0,46989.0,0.01209369]
[1641157270164,0.60441412,46991.0,46989.0,0.01209369]
[1641157270562,0.60441412,46991.0,46989.0,0.20609369]
[1641157270963,0.60441412,46991.0,46990.0,0.01209369]
[1641157271165,0.60441412,46991.0,46990.0,0.84884786]
[1641157272070,0.60441412,46992.0,46990.0,0.84884786]
[1641157272463,0.60441412,46992.0,46991.0,0.01209369]
[1641157272665,0.14033567,46995.0,46991.0,0.01209369]
[1641157273065,1.4701848,46995.0,46991.0,0.01209369]
[1641157273265,1.32984913,46995.0,46991.0,1.20162249]
[1641157273466,1.32984913,46995.0,46993.0,0.14033567]
[1641157274167,1.32984913,46995.0,46994.0,0.59803468]
[1641157274584,1.32984913,46995.0,46994.0,0.78803468]
[1641157275380,1.35113379,46995.0,46994.0,0.78803468]
[1641157275982,1.35113379,46995.0,46994.0,0.59803468]
[1641157276582,1.35113379,46995.0,46994.0,0.78903468]
[1641157276782,0.02128466,46995.0,46994.0,0.78903468]
[1641157276984,0.02128466,46995.0,46994.0,0.55000258]
[1641157277187,1.46053502,46997.0,46994.0,0.55000258]
[1641157277986,1.46053502,46997.0,46994.0,0.35900258]
[1641157278586,1.46053502,46997.0,46994.0,0.54800258]
[1641157278788,0.009794,46997.0,46994.0,0.189]
[1641157279991,0.009794,46997.0,46993.0,0.49933825]
[1641157280391,1.32985746,46995.0,46994.0,0.35900258]
[1641157281190,1.296,46996.0,46993.0,0.68833825]
[1641157281591,1.116,46996.0,46993.0,0.68833825]
[1641157281790,1.46053502,46997.0,46993.0,0.68833825]
[1641157282093,0.02128235,46998.0,46993.0,0.21655567]
[1641157282094,1.45074102,46996.0,46993.0,0.21655567]
[1641157282294,1.45074102,46996.0,46993.0,0.39655567]
[1641157282690,1.45074102,46996.0,46993.0,0.58655567]
[1641157283292,1.45074102,46999.0,46993.0,0.58655567]
[1641157283492,1.32982827,46996.0,46995.0,0.35900258]
[1641157284301,1.32982827,46998.0,46995.0,0.59803468]
[1641157284494,1.32982827,46998.0,46997.0,0.18]
[1641157284693,1.32982827,46998.0,46995.0,0.79003468]
[1641157285795,1.32982827,46998.0,46997.0,0.35999852]
[1641157286394,1.32982827,46998.0,46997.0,0.53999852]
[1641157286594,1.32982827,46998.0,46997.0,0.35999852]
[1641157286795,1.32982827,46999.0,46997.0,0.55099852]
[1641157287500,1.32982827,46999.0,46998.0,0.35999852]
[1641157288695,1.32982827,46999.0,46998.0,0.54899852]
[1641157288897,1.32982827,46999.0,46998.0,0.189]
[1641157289596,1.54142942,47000.0,46998.0,0.189]
[1641157290796,1.54142942,47000.0,46998.0,0.375]
[1641157292097,1.54142942,47000.0,46997.0,0.35999852]
[1641157292799,1.54142942,47000.0,46997.0,0.54599852]
[1641157294100,1.54142942,47000.0,46997.0,0.35999852]
[1641157294302,1.54142942,47000.0,46998.0,0.35999852]
[1641157295901,0.0906884,47000.0,46998.0,0.35999852]
[1641157296703,0.0906884,47000.0,46998.0,0.54699852]
[1641157298004,0.0906884,47000.0,46998.0,0.35999852]
[1641157298804,0.0906884,47000.0,46998.0,0.54699852]
[1641157299407,1.32950627,46999.0,46998.0,0.187]
[1641157299608,1.41904627,46999.0,46998.0,0.187]
[1641157300104,1.41904627,46999.0,46996.0,0.35999852]
[1641157300805,1.41904627,46999.0,46996.0,0.54699852]
[1641157301006,0.0906884,46998.0,46996.0,0.54699852]
[1641157302006,0.0906884,46998.0,46996.0,0.35999852]
[1641157302706,0.0906884,46998.0,46996.0,0.54699852]
[1641157303612,0.0906884,46998.0,46996.0,0.187]
[1641157304013,0.0906884,46998.0,46995.0,0.35999852]
[1641157304610,0.0906884,46998.0,46996.0,0.35999852]
[1641157305213,0.18,46997.0,46996.0,0.35999852]
[1641157306218,0.2706884,46997.0,46994.0,0.59803468]
[1641157306418,0.02128438,46995.0,46993.0,0.14033567]
[1641157306816,0.02128438,46995.0,46994.0,0.186]
[1641157308033,0.02128438,46995.0,46993.0,0.14033567]
[1641157308231,1.42032149,46994.0,46993.0,0.14033567]
[1641157308833,0.0906884,46994.0,46993.0,0.32933567]
[1641157310032,0.0906884,46994.0,46993.0,0.14033567]
[1641157310834,0.0906884,46994.0,46993.0,0.32833567]
[1641157312036,0.0906884,46994.0,46993.0,0.14033567]
[1641157312737,0.2706884,46994.0,46993.0,0.189]
[1641157313143,1.40797461,46994.0,46993.0,0.189]
[1641157314138,1.40797461,46994.0,46988.0,0.35999852]
[1641157314338,0.18,46990.0,46988.0,0.35999852]
[1641157314739,1.55131028,46994.0,46988.0,0.54699852]
[1641157314940,0.0906884,46993.0,46988.0,0.54699852]
[1641157315141,1.32971696,46991.0,46988.0,0.54699852]
[1641157315642,1.32971696,46992.0,46989.0,0.35999852]
[1641157316543,1.50971696,46992.0,46989.0,0.35999852]
[1641157316741,0.154,46992.0,46990.0,0.35999852]
[1641157317444,0.0906884,46991.0,46989.0,0.186]
[1641157317644,0.0906884,46991.0,46990.0,0.59803468]
[1641157318744,0.0906884,46991.0,46990.0,0.79003468]
[1641157319344,0.0906884,46993.0,46990.0,0.79003468]
[1641157320348,0.0906884,46993.0,46988.0,0.83724856]
[1641157320349,0.0906884,46993.0,46989.0,0.59803468]
[1641157320751,0.0906884,46993.0,46990.0,0.19]
[1641157322247,0.0906884,46993.0,46990.0,0.59803468]
[1641157322848,0.18,46991.0,46990.0,0.78703468]
[1641157323049,0.189794,46991.0,46990.0,0.189]
[1641157323252,0.21108179,46991.0,46989.0,0.59803468]
[1641157323448,1.32708179,46991.0,46989.0,0.59803468]
[1641157324048,0.001,46990.0,46982.0,1.31012063]
[1641157324248,0.18,46983.0,46982.0,1.31012063]
[1641157324448,0.25632,46983.0,46982.0,1.31012063]
[1641157324849,0.25632,46983.0,46982.0,0.602391]
[1641157324850,0.44332,46983.0,46982.0,0.602391]
[1641157325547,0.46460945,46983.0,46982.0,0.602391]
[1641157325747,0.46460945,46983.0,46975.0,1.31012063]
[1641157326149,0.46460945,46983.0,46971.0,1.96194059]
[1641157326150,0.36829785,46983.0,46971.0,1.96194059]
[1641157326349,0.36829785,46983.0,46976.0,0.01209344]
[1641157326548,0.18829785,46983.0,46976.0,0.01209344]
[1641157326748,0.37629785,46983.0,46975.0,0.01209344]
[1641157327150,0.36258692,46977.0,46975.0,0.01209344]
[1641157328950,0.52958692,46977.0,46975.0,0.18509344]
[1641157329550,0.52958692,46977.0,46976.0,0.01209344]
[1641157330362,0.167,46977.0,46975.0,0.173]
[1641157330957,0.358,46977.0,46975.0,0.284]
[1641157331160,0.009794,46976.0,46975.0,0.284]
[1641157331358,0.189794,46976.0,46975.0,0.284]
[1641157332055,0.189794,46976.0,46970.0,0.02]
[1641157332257,0.02129308,46974.0,46970.0,0.02]
[1641157332657,0.02129308,46974.0,46971.0,0.0120949]
[1641157332859,0.20529308,46974.0,46971.0,0.0120949]
[1641157334057,0.02129308,46974.0,46971.0,0.0120949]
[1641157334659,0.14033567,46972.0,46971.0,0.0120949]
[1641157336058,0.23376567,46972.0,46971.0,0.0120949]
[1641157336860,0.41576567,46972.0,46971.0,0.0120949]
[1641157338260,0.23376567,46972.0,46971.0,0.0120949]
[1641157338460,0.09343,46972.0,46971.0,0.0120949]
[1641157338660,0.18,46973.0,46971.0,0.0120949]
[1641157338860,0.185,46972.0,46971.0,0.0120949]
[1641157339065,0.32533567,46972.0,46971.0,0.0120949]
[1641157340263,0.14033567,46972.0,46970.0,0.02]
[1641157340462,0.14033567,46972.0,46971.0,0.01209574]
[1641157340863,0.32533567,46972.0,46971.0,0.01209574]
[1641157342167,0.14033567,46972.0,46971.0,0.01209574]
[1641157342967,0.32633567,46972.0,46971.0,0.01209574]
[1641157343771,0.32633567,46972.0,46970.0,0.02]
[1641157344175,0.14033567,46972.0,46970.0,0.02]
[1641157344972,0.187,46972.0,46970.0,0.02]
[1641157345472,0.187,46972.0,46971.0,0.01209547]
[1641157346271,0.02129308,46974.0,46971.0,0.01209547]
[1641157346971,0.20229308,46974.0,46971.0,0.01209547]
[1641157348776,0.02129308,46974.0,46971.0,0.01209547]
[1641157349078,0.20229308,46974.0,46971.0,0.01209547]
[1641157350383,0.20229308,46974.0,46970.0,0.02]
[1641157350884,0.38229308,46974.0,46972.0,0.01209545]
[1641157351084,0.38229308,46974.0,46971.0,0.01209545]
[1641157352183,0.02129308,46974.0,46971.0,0.01209545]
[1641157352984,0.20129308,46974.0,46971.0,0.01209545]
[1641157353987,0.38129308,46974.0,46971.0,0.01209545]
[1641157354389,0.20129308,46974.0,46970.0,0.02]
[1641157354587,0.02129308,46974.0,46970.0,0.02]
[1641157354987,0.20429308,46974.0,46971.0,0.01209578]
[1641157356286,0.02129308,46974.0,46971.0,0.01209578]
[1641157356886,0.20429308,46974.0,46971.0,0.01209578]
[1641157358290,0.02129308,46974.0,46971.0,0.01209578]
[1641157358892,0.20529308,46974.0,46971.0,0.01209578]
[1641157360197,0.02129308,46974.0,46971.0,0.01209578]
[1641157360994,0.20529308,46974.0,46971.0,0.01209578]
[1641157361795,0.20529308,46974.0,46970.0,0.02]
[1641157362301,0.02129308,46974.0,46970.0,0.02]
[1641157362797,0.38356944,46974.0,46970.0,0.02]
[1641157362997,0.56756944,46974.0,46970.0,0.02]
[1641157364299,0.38356944,46974.0,46970.0,0.02]
[1641157364703,0.36227636,46973.0,46970.0,0.02]
[1641157365500,0.20429308,46974.0,46970.0,0.02]
[1641157365700,0.84531178,46971.0,46970.0,0.38204607]
[1641157366800,0.9360445,46971.0,46970.0,0.38204607]
[1641157367002,1.1190445,46971.0,46970.0,0.38204607]
[1641157367507,0.27373272,46971.0,46970.0,0.38204607]
[1641157367703,0.27373272,46971.0,46970.0,0.02]
[1641157368303,0.09073272,46971.0,46970.0,0.02]
[1641157369004,0.27473272,46971.0,46970.0,0.02]
[1641157369507,0.373794,46971.0,46970.0,0.02]
[1641157369706,0.39508904,46971.0,46970.0,0.02]
[1641157369908,0.21508904,46971.0,46970.0,0.02]
[1641157370406,0.21108904,46971.0,46970.0,0.02]
[1641157371007,0.48982176,46971.0,46970.0,0.02]
[1641157371208,0.63015743,46971.0,46970.0,0.02]
[1641157371407,0.63015743,46971.0,46968.0,0.36204607]
[1641157371612,1.72486239,46971.0,46962.0,1.20681676]
[1641157371806,0.18,46964.0,46962.0,1e-08]
[1641157372007,0.25523,46964.0,46962.0,1e-08]
[1641157372207,0.009794,46963.0,46962.0,1e-08]
[1641157372611,0.009794,46963.0,46962.0,0.84630116]
[1641157372911,0.197794,46963.0,46962.0,0.84630116]
[1641157373407,0.21909465,46963.0,46962.0,0.84630116]
[1641157373607,0.21909465,46963.0,46957.0,1.31012063]
[1641157373807,0.18,46961.0,46957.0,1.31012063]
[1641157374008,0.18,46961.0,46952.0,1.1687]
[1641157374208,0.18,46961.0,46946.0,1.31012063]
[1641157374408,0.02130269,46953.0,46946.0,1.31012063]
[1641157374608,0.009794,46952.0,46946.0,1.31012063]
[1641157375009,0.02130503,46948.0,46946.0,1.31012063]
[1641157375208,0.009794,46947.0,46945.0,0.14033567]
[1641157375615,0.02130676,46946.0,46945.0,0.14033567]
[1641157376411,0.02130676,46946.0,46937.0,0.14033567]
[1641157377010,0.20830676,46946.0,46937.0,0.14033567]
[1641157377210,0.14033567,46945.0,46937.0,0.14033567]
[1641157379011,0.32933567,46945.0,46937.0,0.14033567]
[1641157380409,0.14033567,46945.0,46937.0,0.14033567]
[1641157381011,0.32933567,46945.0,46937.0,0.14033567]
[1641157382411,0.14033567,46945.0,46937.0,0.14033567]
[1641157383012,0.32733567,46945.0,46937.0,0.14033567]
[1641157383611,0.02130844,46941.0,46937.0,0.14033567]
[1641157383811,0.09928844,46941.0,46937.0,0.14033567]
[1641157384012,0.02131057,46938.0,46937.0,0.14033567]
[1641157385012,0.20831057,46938.0,46937.0,0.14033567]
[1641157386215,0.02131057,46938.0,46937.0,0.14033567]
[1641157386713,0.02131057,46938.0,46933.0,0.14033567]
[1641157387114,0.20831057,46938.0,46933.0,0.14033567]
[1641157388516,0.02131057,46938.0,46933.0,0.14033567]
[1641157389114,0.20731057,46938.0,46933.0,0.14033567]
[1641157390217,0.02131057,46938.0,46933.0,0.14033567]
[1641157391119,0.20831057,46938.0,46933.0,0.14033567]
[1641157391517,0.18,46936.0,46933.0,0.14033567]
[1641157391719,0.02131204,46934.0,46933.0,0.14033567]
[1641157391923,0.02131204,46934.0,46921.0,0.14033567]
[1641157393024,1.32431204,46934.0,46921.0,0.14033567]
[1641157393224,1.32431204,46934.0,46924.0,0.18]
[1641157393422,0.14033567,46933.0,46924.0,0.18]
[1641157394624,0.14033567,46933.0,46921.0,0.14033567]
[1641157394824,0.14033567,46933.0,46924.0,0.18]
[1641157395026,0.32833567,46933.0,46921.0,0.14033567]
[1641157395223,0.02131432,46928.0,46921.0,0.14033567]
[1641157395424,0.02131245,46932.0,46921.0,0.14033567]
[1641157396024,0.20131245,46932.0,46921.0,0.14033567]
[1641157396225,0.20131245,46932.0,46927.0,0.84499597]
[1641157396226,0.02131422,46928.0,46927.0,0.84499597]
[1641157397024,0.189,46928.0,46927.0,0.84499597]
[1641157397224,1.5093015,46928.0,46926.0,0.84499597]
[1641157397624,1.5093015,46928.0,46927.0,0.18]
[1641157397828,1.5093015,46928.0,46927.0,0.27045]
[1641157398325,0.189,46928.0,46927.0,1.47758396]
[1641157398526,1.3203015,46931.0,46927.0,1.47758396]
[1641157399029,1.5093015,46931.0,46927.0,1.47758396]
[1641157399226,1.5093015,46931.0,46927.0,0.27045]
[1641157399427,0.189,46931.0,46927.0,0.27045]
[1641157400228,0.189,46931.0,46930.0,1.02751259]
[1641157400429,1.3203015,46932.0,46930.0,1.02751259]
[1641157400929,1.3203015,46932.0,46930.0,0.18]
[1641157401129,0.19,46932.0,46930.0,0.18]
[1641157401731,0.19,46932.0,46931.0,0.84749614]
[1641157402331,1.40805114,46937.0,46932.0,0.08245244]
[1641157402536,0.24609585,46961.0,46936.0,1.296]
[1641157402733,1.2835,46964.0,46958.0,0.06]
[1641157402932,1.84462802,46965.0,46958.0,0.24635]
[1641157403334,1.81322802,46965.0,46958.0,0.06635]
[1641157403534,1.81322802,46965.0,46962.0,0.18]
[1641157403933,1.81322802,46965.0,46963.0,0.314016]
[1641157404533,0.02129404,46973.0,46964.0,0.18]
[1641157404737,0.02129404,46973.0,46965.0,0.18]
[1641157404933,0.02129404,46973.0,46965.0,0.188882]
[1641157405134,0.02129404,46973.0,46965.0,0.18]
[1641157405334,0.02129404,46973.0,46967.0,0.18]
[1641157405546,0.02129404,46973.0,46968.0,0.14033567]
[1641157405745,0.14033567,46975.0,46968.0,0.20132567]
[1641157406445,0.14033567,46975.0,46968.0,0.38132567]
[1641157406948,0.14033567,46975.0,46968.0,0.20132567]
[1641157407246,0.14033567,46975.0,46968.0,0.50833567]
[1641157407847,1.56775746,46974.0,46968.0,0.50833567]
[1641157408348,1.56775746,46974.0,46968.0,0.14033567]
[1641157409148,1.56775746,46974.0,46968.0,0.33033567]
[1641157410451,1.56775746,46974.0,46968.0,0.14033567]
[1641157410653,1.4473034,46969.0,46968.0,0.14033567]
[1641157410853,1.5384134,46969.0,46968.0,0.14033567]
[1641157411054,1.5384134,46969.0,46968.0,0.32933567]
[1641157411652,1.62915772,46969.0,46968.0,0.32933567]
[1641157412453,1.62915772,46969.0,46968.0,0.14033567]
[1641157413153,1.62915772,46969.0,46968.0,0.33433567]
[1641157413554,0.18185432,46969.0,46968.0,0.33433567]
[1641157414360,1.62915772,46969.0,46968.0,0.14033567]
[1641157415056,1.62915772,46969.0,46968.0,0.32833567]
[1641157416460,1.62915772,46969.0,46968.0,0.14033567]
[1641157416659,0.18185432,46969.0,46968.0,0.14033567]
[1641157417061,0.18185432,46969.0,46968.0,0.33033567]
[1641157418360,0.18185432,46969.0,46968.0,0.14033567]
[1641157419059,0.18185432,46969.0,46968.0,0.32733567]
[1641157420359,0.18185432,46969.0,46968.0,0.14033567]
[1641157421061,0.18185432,46969.0,46968.0,0.32733567]
[1641157422461,0.18185432,46969.0,46968.0,0.14033567]
[1641157422862,0.18185432,46969.0,46968.0,0.50345856]
[1641157423062,0.18185432,46969.0,46968.0,0.69245856]
[1641157423764,1.62912709,46969.0,46968.0,0.69245856]
[1641157423966,1.62912709,46969.0,46968.0,0.32933567]
[1641157424364,0.18185432,46969.0,46968.0,0.32933567]
[1641157424564,0.18185432,46969.0,46968.0,0.14033567]
[1641157425065,0.18185432,46969.0,46968.0,0.32733567]
[1641157426365,0.18185432,46969.0,46968.0,0.14033567]
[1641157427165,0.18185432,46969.0,46968.0,0.31933567]
[1641157428467,0.18185432,46969.0,46968.0,0.14033567]
[1641157429065,0.18185432,46969.0,46968.0,0.32133567]
[1641157430472,0.18185432,46969.0,46968.0,0.14033567]
[1641157431071,0.18185432,46969.0,46968.0,0.32133567]
[1641157432477,0.18185432,46969.0,46968.0,0.14033567]
[1641157433087,0.18185432,46969.0,46968.0,0.32133567]
[1641157433689,0.20315069,46969.0,46968.0,0.181]
[1641157434492,0.20315069,46969.0,46962.0,0.36312289]
[1641157435194,1.43617925,46964.0,46962.0,0.54912289]
[1641157435992,1.43617925,46965.0,46962.0,0.54912289]
[1641157436391,1.43617925,46965.0,46962.0,0.36312289]
[1641157436795,1.43617925,46966.0,46963.0,0.36312289]
[1641157437797,1.43617925,46966.0,46964.0,0.36312289]
[1641157438395,1.61617925,46966.0,46963.0,0.36312289]
[1641157438601,0.0212987,46964.0,46963.0,0.36312289]
[1641157438995,0.0310927,46964.0,46963.0,0.36312289]
[1641157439195,0.2250927,46964.0,46963.0,0.36312289]
[1641157439401,0.2152987,46964.0,46963.0,0.36312289]
[1641157439602,0.194,46964.0,46963.0,0.36312289]
[1641157439802,0.194,46964.0,46963.0,0.320921]
[1641157440305,0.194,46964.0,46962.0,0.319718]
[1641157440502,0.09074432,46965.0,46963.0,0.318437]
[1641157440707,0.09074432,46965.0,46963.0,0.06357]
[1641157441105,0.09074432,46965.0,46964.0,0.32112]